[Event "Titled Tuesday Blitz May 2 Late 2023"]
[White "Nazari, Arad"]
[Black "Mortazavi, Ali"]
[WhiteFideId "12577324"]
[BlackFideId "401323"]
[WhiteElo "2242"]
[BlackElo "2339"]
[Result "1-0"]
[Round "08"]
[TimeControl "180+2"]
[Date "2023.05.02"]
[WhiteClock "0:00:09"]
[BlackClock "0:00:01"]

1. e4 {[%clk 0:03:00]}  c6 {[%clk 0:02:38]} 2. Nf3 {[%clk 0:03:00]}  d5 {[%clk 0:02:39]} 3. Nc3 {[%clk 0:03:01]}  dxe4 {[%clk 0:02:39]} 4. Nxe4 {[%clk 0:03:02]}  Nf6 {[%clk 0:02:39]} 5. Qe2 {[%clk 0:03:02]}  Be6 {[%clk 0:02:39]} 6. Nxf6+ {[%clk 0:02:59]}  exf6 {[%clk 0:02:37]} 7. g3 {[%clk 0:02:47]}  Be7 {[%clk 0:02:21]} 8. Bg2 {[%clk 0:02:47]}  O-O {[%clk 0:02:21]} 9. O-O {[%clk 0:02:48]}  Na6 {[%clk 0:02:15]} 10. c3 {[%clk 0:02:46]}  Re8 {[%clk 0:02:11]} 11. d4 {[%clk 0:02:45]}  Bf8 {[%clk 0:02:07]} 12. Qc2 {[%clk 0:02:41]}  Qd7 {[%clk 0:02:03]} 13. Re1 {[%clk 0:02:38]}  Nc7 {[%clk 0:01:51]} 14. Bd2 {[%clk 0:02:31]}  Rad8 {[%clk 0:01:46]} 15. Qa4 {[%clk 0:02:23]}  a6 {[%clk 0:01:45]} 16. Qa5 {[%clk 0:02:20]}  Bd6 {[%clk 0:01:27]} 17. Re2 {[%clk 0:01:53]}  Bc4 {[%clk 0:01:13]} 18. Rxe8+ {[%clk 0:01:52]}  Rxe8 {[%clk 0:01:14]} 19. b3 {[%clk 0:01:52]}  Be6 {[%clk 0:01:06]} 20. c4 {[%clk 0:01:48]}  h6 {[%clk 0:01:03]} 21. Re1 {[%clk 0:01:47]}  Bg4 {[%clk 0:00:53]} 22. Rxe8+ {[%clk 0:01:43]}  Nxe8 {[%clk 0:00:49]} 23. Qc3 {[%clk 0:01:36]}  Qf5 {[%clk 0:00:43]} 24. Ne1 {[%clk 0:01:09]}  Qb1 {[%clk 0:00:38]} 25. Qc2 {[%clk 0:01:07]}  Qxc2 {[%clk 0:00:23]} 26. Nxc2 {[%clk 0:01:07]}  Bf5 {[%clk 0:00:22]} 27. Ne3 {[%clk 0:01:05]}  Bb1 {[%clk 0:00:22]} 28. c5 {[%clk 0:00:57]}  Bc7 {[%clk 0:00:20]} 29. a3 {[%clk 0:00:58]}  f5 {[%clk 0:00:18]} 30. d5 {[%clk 0:00:55]}  cxd5 {[%clk 0:00:16]} 31. Nxd5 {[%clk 0:00:53]}  Bd8 {[%clk 0:00:17]} 32. Nc3 {[%clk 0:00:47]}  Bc2 {[%clk 0:00:16]} 33. Bxb7 {[%clk 0:00:38]}  Bxb3 {[%clk 0:00:16]} 34. Bxa6 {[%clk 0:00:39]}  Nc7 {[%clk 0:00:15]} 35. Bb7 {[%clk 0:00:33]}  Be7 {[%clk 0:00:15]} 36. Be3 {[%clk 0:00:27]}  Kf8 {[%clk 0:00:12]} 37. a4 {[%clk 0:00:22]}  Bf6 {[%clk 0:00:12]} 38. Nb5 {[%clk 0:00:23]}  Ne6 {[%clk 0:00:09]} 39. a5 {[%clk 0:00:21]}  Bc4 {[%clk 0:00:07]} 40. Nd6 {[%clk 0:00:20]}  Bd3 {[%clk 0:00:06]} 41. a6 {[%clk 0:00:19]}  Nc7 {[%clk 0:00:05]} 42. a7 {[%clk 0:00:18]}  g5 {[%clk 0:00:03]} 43. a8=Q+ {[%clk 0:00:08]}  Nxa8 {[%clk 0:00:04]} 44. Bxa8 {[%clk 0:00:09]}  Be5 {[%clk 0:00:05]} 45. Bd5 {[%clk 0:00:08]}  f6 {[%clk 0:00:03]} 46. Bc4 {[%clk 0:00:08]}  Bb1 {[%clk 0:00:03]} 47. Nb5 {[%clk 0:00:07]}  Ke7 {[%clk 0:00:02]} 48. c6 {[%clk 0:00:07]}  f4 {[%clk 0:00:02]} 49. Bc5+ {[%clk 0:00:08]}  Kd8 {[%clk 0:00:02]} 50. Bb6+ {[%clk 0:00:08]}  Ke7 {[%clk 0:00:01]} 51. c7 {[%clk 0:00:08]}  Bf5 {[%clk 0:00:01]} 52. Na7 {[%clk 0:00:09]} 1-0


[Site "https://www.chess.com"]

[Event "Titled Tuesday Blitz May 2 Late 2023"]
[White "Skvortsov, Andrei"]
[Black "Kleiman, Jake"]
[WhiteFideId "24108600"]
[BlackFideId "2020041"]
[WhiteElo "2259"]
[BlackElo "2399"]
[Result "0-1"]
[Round "08"]
[TimeControl "180+2"]
[Date "2023.05.02"]
[WhiteClock "0:00:06"]
[BlackClock "0:00:09"]

1. e4 {[%clk 0:03:00]}  e5 {[%clk 0:02:58]} 2. d4 {[%clk 0:02:57]}  exd4 {[%clk 0:02:58]} 3. Qxd4 {[%clk 0:02:58]}  Nc6 {[%clk 0:02:57]} 4. Qd3 {[%clk 0:02:57]}  Nf6 {[%clk 0:02:57]} 5. Nc3 {[%clk 0:02:55]}  Bb4 {[%clk 0:02:55]} 6. Bd2 {[%clk 0:02:55]}  O-O {[%clk 0:02:55]} 7. O-O-O {[%clk 0:02:54]}  Re8 {[%clk 0:02:55]} 8. Nge2 {[%clk 0:02:53]}  d6 {[%clk 0:02:17]} 9. Bg5 {[%clk 0:02:47]}  h6 {[%clk 0:02:13]} 10. Bxf6 {[%clk 0:02:47]}  Qxf6 {[%clk 0:02:14]} 11. Nd5 {[%clk 0:02:47]}  Qd8 {[%clk 0:02:08]} 12. Nxb4 {[%clk 0:02:46]}  Nxb4 {[%clk 0:02:09]} 13. Qd2 {[%clk 0:02:46]}  Nc6 {[%clk 0:01:59]} 14. Nc3 {[%clk 0:02:44]}  Be6 {[%clk 0:01:58]} 15. f4 {[%clk 0:02:42]}  f5 {[%clk 0:01:56]} 16. exf5 {[%clk 0:02:40]}  Bxf5 {[%clk 0:01:56]} 17. Bc4+ {[%clk 0:02:41]}  Kh8 {[%clk 0:01:47]} 18. h3 {[%clk 0:02:40]}  Qd7 {[%clk 0:01:40]} 19. g4 {[%clk 0:02:38]}  Be6 {[%clk 0:01:40]} 20. Bd3 {[%clk 0:02:34]}  Nb4 {[%clk 0:01:40]} 21. f5 {[%clk 0:02:31]}  Nxd3+ {[%clk 0:01:37]} 22. cxd3 {[%clk 0:02:23]}  Bg8 {[%clk 0:01:38]} 23. f6 {[%clk 0:02:16]}  Rf8 {[%clk 0:01:24]} 24. Rdf1 {[%clk 0:02:11]}  Rae8 {[%clk 0:01:13]} 25. Ne4 {[%clk 0:02:06]}  Bh7 {[%clk 0:01:11]} 26. Nc3 {[%clk 0:01:53]}  Qe6 {[%clk 0:01:01]} 27. fxg7+ {[%clk 0:01:50]}  Kxg7 {[%clk 0:01:02]} 28. Rxf8 {[%clk 0:01:48]}  Rxf8 {[%clk 0:01:01]} 29. Re1 {[%clk 0:01:49]}  Qf7 {[%clk 0:00:56]} 30. Qe3 {[%clk 0:01:30]}  a6 {[%clk 0:00:51]} 31. Kd2 {[%clk 0:01:22]}  Qf2+ {[%clk 0:00:45]} 32. Re2 {[%clk 0:01:20]}  Qxe3+ {[%clk 0:00:44]} 33. Kxe3 {[%clk 0:01:21]}  Bg8 {[%clk 0:00:31]} 34. d4 {[%clk 0:01:19]}  Kg6 {[%clk 0:00:28]} 35. Rf2 {[%clk 0:01:16]}  Re8+ {[%clk 0:00:26]} 36. Kf4 {[%clk 0:01:17]}  Re1 {[%clk 0:00:25]} 37. h4 {[%clk 0:01:15]}  Be6 {[%clk 0:00:24]} 38. a3 {[%clk 0:01:11]}  Rg1 {[%clk 0:00:23]} 39. d5 {[%clk 0:00:56]}  Bxg4 {[%clk 0:00:22]} 40. Ne4 {[%clk 0:00:53]}  Bd7 {[%clk 0:00:20]} 41. h5+ {[%clk 0:00:51]}  Kg7 {[%clk 0:00:19]} 42. Ke3 {[%clk 0:00:50]}  Re1+ {[%clk 0:00:16]} 43. Kd4 {[%clk 0:00:50]}  Rd1+ {[%clk 0:00:16]} 44. Kc4 {[%clk 0:00:39]}  Bb5+ {[%clk 0:00:16]} 45. Kc3 {[%clk 0:00:39]}  Rxd5 {[%clk 0:00:16]} 46. Nf6 {[%clk 0:00:36]}  Rg5 {[%clk 0:00:14]} 47. b3 {[%clk 0:00:34]}  Bc6 {[%clk 0:00:14]} 48. a4 {[%clk 0:00:34]}  a5 {[%clk 0:00:14]} 49. Kd4 {[%clk 0:00:33]}  Rg3 {[%clk 0:00:14]} 50. Kc4 {[%clk 0:00:32]}  b6 {[%clk 0:00:13]} 51. Rf1 {[%clk 0:00:29]}  Rg5 {[%clk 0:00:13]} 52. Rf4 {[%clk 0:00:27]}  Rg3 {[%clk 0:00:12]} 53. Rf2 {[%clk 0:00:21]}  Rf3 {[%clk 0:00:12]} 54. Ne8+ {[%clk 0:00:21]}  Kf8 {[%clk 0:00:11]} 55. Rxf3+ {[%clk 0:00:22]}  Bxf3 {[%clk 0:00:12]} 56. Nxc7 {[%clk 0:00:23]}  Bxh5 {[%clk 0:00:13]} 57. Kb5 {[%clk 0:00:22]}  Bd1 {[%clk 0:00:12]} 58. Kxb6 {[%clk 0:00:18]}  Bxb3 {[%clk 0:00:12]} 59. Kxa5 {[%clk 0:00:19]}  h5 {[%clk 0:00:12]} 60. Kb4 {[%clk 0:00:19]}  Bd1 {[%clk 0:00:10]} 61. a5 {[%clk 0:00:19]}  h4 {[%clk 0:00:09]} 62. Ne6+ {[%clk 0:00:20]}  Ke7 {[%clk 0:00:09]} 63. Nf4 {[%clk 0:00:20]}  Bf3 {[%clk 0:00:08]} 64. Kc4 {[%clk 0:00:19]}  Kf6 {[%clk 0:00:09]} 65. Kd4 {[%clk 0:00:20]}  Kf5 {[%clk 0:00:09]} 66. Ke3 {[%clk 0:00:21]}  Ba8 {[%clk 0:00:08]} 67. a6 {[%clk 0:00:20]}  Kg4 {[%clk 0:00:08]} 68. Nd3 {[%clk 0:00:15]}  Kg3 {[%clk 0:00:07]} 69. a7 {[%clk 0:00:14]}  h3 {[%clk 0:00:08]} 70. Nf2 {[%clk 0:00:14]}  h2 {[%clk 0:00:08]} 71. Ke2 {[%clk 0:00:12]}  Kg2 {[%clk 0:00:08]} 72. Ke3 {[%clk 0:00:13]}  Bf3 {[%clk 0:00:08]} 73. Ne4 {[%clk 0:00:05]}  Bxe4 {[%clk 0:00:08]} 74. Kxe4 {[%clk 0:00:06]}  h1=Q {[%clk 0:00:08]} 75. Kd4 {[%clk 0:00:06]}  Kf2 {[%clk 0:00:09]} 0-1


[Site "https://www.chess.com"]

[Event "Titled Tuesday Blitz May 2 Late 2023"]
[White "Aldokhin, Ivan"]
[Black "Adan Bermudez, Sergio"]
[WhiteFideId "24115720"]
[BlackFideId "2292726"]
[WhiteElo "2322"]
[BlackElo "2292"]
[Result "1/2-1/2"]
[Round "08"]
[TimeControl "180+2"]
[Date "2023.05.02"]
[WhiteClock "0:00:02"]
[BlackClock "0:00:37"]

1. e4 {[%clk 0:02:49]}  c5 {[%clk 0:03:00]} 2. Nf3 {[%clk 0:02:49]}  Nc6 {[%clk 0:03:00]} 3. d4 {[%clk 0:02:49]}  cxd4 {[%clk 0:03:01]} 4. Nxd4 {[%clk 0:02:50]}  e5 {[%clk 0:03:01]} 5. Nb5 {[%clk 0:02:50]}  a6 {[%clk 0:03:00]} 6. Nd6+ {[%clk 0:02:50]}  Bxd6 {[%clk 0:03:01]} 7. Qxd6 {[%clk 0:02:50]}  Qe7 {[%clk 0:03:02]} 8. Qd2 {[%clk 0:02:49]}  Nf6 {[%clk 0:03:01]} 9. Nc3 {[%clk 0:02:50]}  d6 {[%clk 0:03:02]} 10. b3 {[%clk 0:02:49]}  Nd4 {[%clk 0:02:57]} 11. Bb2 {[%clk 0:02:47]}  Be6 {[%clk 0:02:57]} 12. Bd3 {[%clk 0:02:42]}  Rc8 {[%clk 0:02:57]} 13. Ne2 {[%clk 0:02:39]}  Nxe2 {[%clk 0:02:49]} 14. Qxe2 {[%clk 0:02:39]}  O-O {[%clk 0:02:47]} 15. c4 {[%clk 0:02:37]}  b5 {[%clk 0:02:40]} 16. cxb5 {[%clk 0:02:36]}  axb5 {[%clk 0:02:41]} 17. Bxb5 {[%clk 0:02:36]}  d5 {[%clk 0:02:36]} 18. O-O {[%clk 0:02:25]}  dxe4 {[%clk 0:02:14]} 19. Bxe5 {[%clk 0:02:08]}  Ng4 {[%clk 0:02:05]} 20. Bg3 {[%clk 0:01:43]}  f5 {[%clk 0:02:02]} 21. f3 {[%clk 0:01:19]}  Qc5+ {[%clk 0:01:48]} 22. Kh1 {[%clk 0:01:19]}  f4 {[%clk 0:01:32]} 23. fxg4 {[%clk 0:01:12]}  fxg3 {[%clk 0:01:32]} 24. Qxe4 {[%clk 0:01:01]}  Bd5 {[%clk 0:01:29]} 25. Rxf8+ {[%clk 0:00:55]}  Rxf8 {[%clk 0:01:29]} 26. Qxd5+ {[%clk 0:00:46]}  Qxd5 {[%clk 0:01:29]} 27. Bc4 {[%clk 0:00:46]}  Qxc4 {[%clk 0:01:25]} 28. bxc4 {[%clk 0:00:46]}  Rc8 {[%clk 0:01:19]} 29. Rc1 {[%clk 0:00:29]}  Ra8 {[%clk 0:01:19]} 30. Rc2 {[%clk 0:00:26]}  Kf7 {[%clk 0:01:17]} 31. hxg3 {[%clk 0:00:24]}  Ke7 {[%clk 0:01:17]} 32. Kg1 {[%clk 0:00:22]}  Kd6 {[%clk 0:01:17]} 33. c5+ {[%clk 0:00:19]}  Kc6 {[%clk 0:01:17]} 34. Kf2 {[%clk 0:00:20]}  Ra4 {[%clk 0:01:16]} 35. Kf3 {[%clk 0:00:20]}  g5 {[%clk 0:01:13]} 36. Re2 {[%clk 0:00:14]}  h6 {[%clk 0:01:06]} 37. Re6+ {[%clk 0:00:14]}  Kd5 {[%clk 0:01:04]} 38. Rxh6 {[%clk 0:00:12]}  Ra3+ {[%clk 0:01:04]} 39. Kf2 {[%clk 0:00:10]}  Rxa2+ {[%clk 0:01:04]} 40. Kg1 {[%clk 0:00:10]}  Ra1+ {[%clk 0:01:03]} 41. Kh2 {[%clk 0:00:09]}  Ra4 {[%clk 0:01:02]} 42. Kh3 {[%clk 0:00:07]}  Ra1 {[%clk 0:00:59]} 43. Kh2 {[%clk 0:00:07]}  Ra4 {[%clk 0:00:57]} 44. Rg6 {[%clk 0:00:08]}  Rxg4 {[%clk 0:00:57]} 45. Kh3 {[%clk 0:00:08]}  Rc4 {[%clk 0:00:55]} 46. Rxg5+ {[%clk 0:00:08]}  Ke6 {[%clk 0:00:54]} 47. g4 {[%clk 0:00:08]}  Kf6 {[%clk 0:00:55]} 48. Rf5+ {[%clk 0:00:08]}  Kg6 {[%clk 0:00:55]} 49. Rd5 {[%clk 0:00:08]}  Rc1 {[%clk 0:00:53]} 50. Kg3 {[%clk 0:00:08]}  Rc3+ {[%clk 0:00:53]} 51. Kh4 {[%clk 0:00:08]}  Rc1 {[%clk 0:00:52]} 52. Rd6+ {[%clk 0:00:09]}  Kf7 {[%clk 0:00:52]} 53. c6 {[%clk 0:00:10]}  Ke7 {[%clk 0:00:50]} 54. Rh6 {[%clk 0:00:09]}  Kf7 {[%clk 0:00:50]} 55. Kh5 {[%clk 0:00:07]}  Kg7 {[%clk 0:00:45]} 56. Rd6 {[%clk 0:00:05]}  Kf7 {[%clk 0:00:43]} 57. Kg5 {[%clk 0:00:03]}  Rc5+ {[%clk 0:00:43]} 58. Kh6 {[%clk 0:00:03]}  Rc1 {[%clk 0:00:43]} 59. Rd7+ {[%clk 0:00:02]}  Ke6 {[%clk 0:00:43]} 60. Rg7 {[%clk 0:00:02]}  Kf6 {[%clk 0:00:40]} 61. Rg6+ {[%clk 0:00:02]}  Kf7 {[%clk 0:00:41]} 62. Rg7+ {[%clk 0:00:02]}  Kf6 {[%clk 0:00:41]} 63. Rg6+ {[%clk 0:00:03]}  Kf7 {[%clk 0:00:42]} 64. Kh5 {[%clk 0:00:03]}  Rh1+ {[%clk 0:00:38]} 65. Kg5 {[%clk 0:00:03]}  Rc1 {[%clk 0:00:39]} 66. Rd6 {[%clk 0:00:03]}  Rc5+ {[%clk 0:00:38]} 67. Kh6 {[%clk 0:00:03]}  Rc1 {[%clk 0:00:37]} 68. Kg5 {[%clk 0:00:02]} 1/2-1/2


[Site "https://www.chess.com"]

[Event "Titled Tuesday Blitz May 2 Late 2023"]
[White "Guerra Tulcan, Lenin"]
[Black "Stork, Oliver"]
[WhiteFideId "3601382"]
[BlackFideId "12955728"]
[WhiteElo "2368"]
[BlackElo "2239"]
[Result "1/2-1/2"]
[Round "08"]
[TimeControl "180+2"]
[Date "2023.05.02"]
[WhiteClock "0:00:11"]
[BlackClock "0:00:28"]

1. e4 {[%clk 0:02:58]}  c6 {[%clk 0:02:59]} 2. Nf3 {[%clk 0:02:57]}  d5 {[%clk 0:02:59]} 3. exd5 {[%clk 0:02:58]}  cxd5 {[%clk 0:02:59]} 4. Ne5 {[%clk 0:02:59]}  Nf6 {[%clk 0:02:48]} 5. Bb5+ {[%clk 0:02:58]}  Bd7 {[%clk 0:02:46]} 6. Qe2 {[%clk 0:02:58]}  a6 {[%clk 0:02:40]} 7. Bxd7+ {[%clk 0:02:53]}  Nbxd7 {[%clk 0:02:41]} 8. O-O {[%clk 0:02:51]}  e6 {[%clk 0:02:36]} 9. Re1 {[%clk 0:02:46]}  Bd6 {[%clk 0:02:36]} 10. Nxf7 {[%clk 0:02:42]}  Bxh2+ {[%clk 0:02:36]} 11. Kxh2 {[%clk 0:02:43]}  Kxf7 {[%clk 0:02:36]} 12. Qxe6+ {[%clk 0:02:42]}  Kf8 {[%clk 0:02:36]} 13. Qd6+ {[%clk 0:01:48]}  Kf7 {[%clk 0:02:28]} 14. Nc3 {[%clk 0:01:48]}  Nf8 {[%clk 0:02:09]} 15. Qxd8 {[%clk 0:01:45]}  Rxd8 {[%clk 0:02:10]} 16. d3 {[%clk 0:01:44]}  Ne6 {[%clk 0:02:08]} 17. f3 {[%clk 0:01:39]}  Nd4 {[%clk 0:02:03]} 18. Re5 {[%clk 0:01:25]}  Nxc2 {[%clk 0:01:50]} 19. Rb1 {[%clk 0:01:25]}  Rhe8 {[%clk 0:01:49]} 20. Bf4 {[%clk 0:01:22]}  Nb4 {[%clk 0:01:38]} 21. Rd1 {[%clk 0:01:16]}  Nc6 {[%clk 0:01:36]} 22. Rxe8 {[%clk 0:01:16]}  Rxe8 {[%clk 0:01:37]} 23. d4 {[%clk 0:01:16]}  Na5 {[%clk 0:01:27]} 24. Be5 {[%clk 0:01:08]}  Nc4 {[%clk 0:01:17]} 25. Bxf6 {[%clk 0:01:07]}  gxf6 {[%clk 0:01:15]} 26. Nxd5 {[%clk 0:01:07]}  Nxb2 {[%clk 0:01:13]} 27. Rc1 {[%clk 0:01:02]}  Rd8 {[%clk 0:01:08]} 28. Rc7+ {[%clk 0:01:02]}  Ke6 {[%clk 0:01:08]} 29. Nf4+ {[%clk 0:01:01]}  Kf5 {[%clk 0:01:09]} 30. Ne2 {[%clk 0:00:58]}  b5 {[%clk 0:01:03]} 31. Rxh7 {[%clk 0:00:54]}  Nc4 {[%clk 0:00:59]} 32. Ra7 {[%clk 0:00:52]}  a5 {[%clk 0:00:58]} 33. Rb7 {[%clk 0:00:47]}  Nd6 {[%clk 0:00:53]} 34. Rb6 {[%clk 0:00:45]}  b4 {[%clk 0:00:52]} 35. g4+ {[%clk 0:00:43]}  Ke6 {[%clk 0:00:51]} 36. Kg3 {[%clk 0:00:43]}  Kd5 {[%clk 0:00:51]} 37. Nf4+ {[%clk 0:00:42]}  Kc4 {[%clk 0:00:50]} 38. Rc6+ {[%clk 0:00:37]}  Kb5 {[%clk 0:00:48]} 39. Rc5+ {[%clk 0:00:32]}  Ka6 {[%clk 0:00:48]} 40. Nd5 {[%clk 0:00:31]}  Nb5 {[%clk 0:00:46]} 41. Rc6+ {[%clk 0:00:25]}  Ka7 {[%clk 0:00:47]} 42. Nxf6 {[%clk 0:00:24]}  Nxd4 {[%clk 0:00:47]} 43. Rc5 {[%clk 0:00:22]}  Kb6 {[%clk 0:00:46]} 44. Rd5 {[%clk 0:00:22]}  Rxd5 {[%clk 0:00:45]} 45. Nxd5+ {[%clk 0:00:23]}  Kc5 {[%clk 0:00:46]} 46. Ne3 {[%clk 0:00:23]}  a4 {[%clk 0:00:46]} 47. g5 {[%clk 0:00:23]}  b3 {[%clk 0:00:47]} 48. axb3 {[%clk 0:00:22]}  axb3 {[%clk 0:00:47]} 49. Nd1 {[%clk 0:00:21]}  Kc4 {[%clk 0:00:45]} 50. Kf4 {[%clk 0:00:21]}  Kd3 {[%clk 0:00:45]} 51. Nb2+ {[%clk 0:00:21]}  Kc2 {[%clk 0:00:45]} 52. Na4 {[%clk 0:00:21]}  Ne6+ {[%clk 0:00:42]} 53. Kf5 {[%clk 0:00:14]}  Nc5 {[%clk 0:00:40]} 54. Nxc5 {[%clk 0:00:14]}  b2 {[%clk 0:00:41]} 55. g6 {[%clk 0:00:15]}  b1=Q {[%clk 0:00:41]} 56. Ne4 {[%clk 0:00:15]}  Qb5+ {[%clk 0:00:39]} 57. Kf6 {[%clk 0:00:15]}  Qd3 {[%clk 0:00:39]} 58. Ng5 {[%clk 0:00:14]}  Qd6+ {[%clk 0:00:38]} 59. Kf5 {[%clk 0:00:14]}  Qd5+ {[%clk 0:00:38]} 60. Kf6 {[%clk 0:00:14]}  Qc6+ {[%clk 0:00:35]} 61. Kf5 {[%clk 0:00:13]}  Qd7+ {[%clk 0:00:35]} 62. Kf6 {[%clk 0:00:11]}  Qd8+ {[%clk 0:00:35]} 63. Kf5 {[%clk 0:00:11]}  Kd3 {[%clk 0:00:33]} 64. g7 {[%clk 0:00:11]}  Qd7+ {[%clk 0:00:32]} 65. Kg6 {[%clk 0:00:11]}  Qd6+ {[%clk 0:00:32]} 66. Kh7 {[%clk 0:00:11]}  Qh2+ {[%clk 0:00:31]} 67. Kg6 {[%clk 0:00:11]}  Qd6+ {[%clk 0:00:30]} 68. Kf7 {[%clk 0:00:12]}  Qf4+ {[%clk 0:00:28]} 69. Kg6 {[%clk 0:00:11]}  Qd6+ {[%clk 0:00:28]} 1/2-1/2


[Site "https://www.chess.com"]

[Event "Titled Tuesday Blitz May 2 Late 2023"]
[White "Meunier-Pion, Jean"]
[Black "Nasir, Zehn"]
[WhiteFideId "20685327"]
[BlackFideId "2613239"]
[WhiteElo "2124"]
[BlackElo "1993"]
[Result "0-1"]
[Round "08"]
[TimeControl "180+2"]
[Date "2023.05.02"]
[WhiteClock "0:00:03"]
[BlackClock "0:00:42"]

1. d4 {[%clk 0:02:59]}  Nf6 {[%clk 0:02:58]} 2. c4 {[%clk 0:03:00]}  e5 {[%clk 0:02:57]} 3. dxe5 {[%clk 0:02:59]}  Ng4 {[%clk 0:02:57]} 4. Nf3 {[%clk 0:02:59]}  Bc5 {[%clk 0:02:57]} 5. e3 {[%clk 0:02:59]}  Nc6 {[%clk 0:02:57]} 6. Be2 {[%clk 0:02:57]}  Ngxe5 {[%clk 0:02:57]} 7. O-O {[%clk 0:02:58]}  O-O {[%clk 0:02:55]} 8. Nc3 {[%clk 0:02:56]}  Re8 {[%clk 0:02:55]} 9. a3 {[%clk 0:02:55]}  a5 {[%clk 0:02:55]} 10. Nd4 {[%clk 0:02:47]}  Qh4 {[%clk 0:02:37]} 11. f4 {[%clk 0:02:39]}  Ng6 {[%clk 0:02:21]} 12. g3 {[%clk 0:02:25]}  Qd8 {[%clk 0:02:14]} 13. Nd5 {[%clk 0:02:24]}  Nxd4 {[%clk 0:02:09]} 14. exd4 {[%clk 0:02:24]}  Bxd4+ {[%clk 0:02:08]} 15. Qxd4 {[%clk 0:02:14]}  Rxe2 {[%clk 0:02:08]} 16. Be3 {[%clk 0:02:15]}  Ne7 {[%clk 0:01:53]} 17. Nc3 {[%clk 0:01:47]}  Nf5 {[%clk 0:01:46]} 18. Nxe2 {[%clk 0:01:43]}  Nxd4 {[%clk 0:01:45]} 19. Bxd4 {[%clk 0:01:38]}  d6 {[%clk 0:01:41]} 20. f5 {[%clk 0:01:38]}  f6 {[%clk 0:01:30]} 21. Rae1 {[%clk 0:01:36]}  Bd7 {[%clk 0:01:29]} 22. Bc3 {[%clk 0:01:33]}  Qf8 {[%clk 0:01:24]} 23. Nf4 {[%clk 0:01:27]}  Bxf5 {[%clk 0:01:15]} 24. Nd5 {[%clk 0:01:22]}  Bd3 {[%clk 0:01:13]} 25. Rf4 {[%clk 0:00:25]}  Re8 {[%clk 0:01:03]} 26. Rd1 {[%clk 0:00:25]}  Bc2 {[%clk 0:01:00]} 27. Rc1 {[%clk 0:00:25]}  Re2 {[%clk 0:00:53]} 28. Nxc7 {[%clk 0:00:15]}  Qc8 {[%clk 0:00:48]} 29. Nd5 {[%clk 0:00:15]}  Qh3 {[%clk 0:00:48]} 30. Rf2 {[%clk 0:00:11]}  Rxf2 {[%clk 0:00:48]} 31. Kxf2 {[%clk 0:00:11]}  Qxh2+ {[%clk 0:00:48]} 32. Kf3 {[%clk 0:00:11]}  Qh5+ {[%clk 0:00:45]} 33. Kf2 {[%clk 0:00:07]}  Qf5+ {[%clk 0:00:45]} 34. Kg1 {[%clk 0:00:03]}  Qd3 {[%clk 0:00:44]} 35. Re1 {[%clk 0:00:03]}  Qxg3+ {[%clk 0:00:42]} 36. Kf1 {[%clk 0:00:03]}  Bd3+ {[%clk 0:00:42]} 37. Re2 {[%clk 0:00:03]}  Qf3+ {[%clk 0:00:42]} 38. Kg1 {[%clk 0:00:03]}  Bxe2 {[%clk 0:00:42]} 0-1


[Site "https://www.chess.com"]

[Event "Titled Tuesday Blitz May 2 Late 2023"]
[White "Koellner, Ruben Gideon"]
[Black "Bayo Milagro, Alvaro"]
[WhiteFideId "12993093"]
[BlackFideId "22275240"]
[WhiteElo "2314"]
[BlackElo "2270"]
[Result "0-1"]
[Round "08"]
[TimeControl "180+2"]
[Date "2023.05.02"]
[WhiteClock "0:00:05"]
[BlackClock "0:00:13"]

1. d4 {[%clk 0:03:00]}  Nf6 {[%clk 0:02:59]} 2. Nf3 {[%clk 0:03:00]}  g6 {[%clk 0:02:59]} 3. Nbd2 {[%clk 0:03:00]}  d5 {[%clk 0:02:58]} 4. e3 {[%clk 0:03:00]}  Bg7 {[%clk 0:02:59]} 5. b4 {[%clk 0:03:01]}  a5 {[%clk 0:02:58]} 6. b5 {[%clk 0:03:02]}  O-O {[%clk 0:02:58]} 7. c4 {[%clk 0:03:02]}  Nbd7 {[%clk 0:02:54]} 8. cxd5 {[%clk 0:02:54]}  Nxd5 {[%clk 0:02:53]} 9. Bc4 {[%clk 0:02:55]}  N7b6 {[%clk 0:02:52]} 10. O-O {[%clk 0:02:48]}  Nxc4 {[%clk 0:02:52]} 11. Nxc4 {[%clk 0:02:49]}  Bg4 {[%clk 0:02:35]} 12. Bb2 {[%clk 0:02:45]}  a4 {[%clk 0:02:25]} 13. Ba3 {[%clk 0:02:44]}  Nc3 {[%clk 0:02:18]} 14. Qc2 {[%clk 0:02:43]}  Nxb5 {[%clk 0:02:15]} 15. Rab1 {[%clk 0:02:35]}  Nxa3 {[%clk 0:02:06]} 16. Nxa3 {[%clk 0:02:36]}  Bxf3 {[%clk 0:01:47]} 17. gxf3 {[%clk 0:02:37]}  e5 {[%clk 0:01:37]} 18. dxe5 {[%clk 0:02:34]}  Bxe5 {[%clk 0:01:36]} 19. f4 {[%clk 0:02:33]}  Bg7 {[%clk 0:01:27]} 20. Rxb7 {[%clk 0:02:30]}  Qc8 {[%clk 0:01:21]} 21. Qc6 {[%clk 0:02:25]}  Ra6 {[%clk 0:01:13]} 22. Qf3 {[%clk 0:02:14]}  c5 {[%clk 0:00:58]} 23. Rc1 {[%clk 0:02:12]}  Rc6 {[%clk 0:00:56]} 24. Rb5 {[%clk 0:01:59]}  c4 {[%clk 0:00:54]} 25. Rb4 {[%clk 0:01:44]}  c3 {[%clk 0:00:50]} 26. Nc2 {[%clk 0:01:44]}  Rc4 {[%clk 0:00:42]} 27. Qe2 {[%clk 0:01:27]}  Rxb4 {[%clk 0:00:38]} 28. Nxb4 {[%clk 0:01:27]}  Rd8 {[%clk 0:00:35]} 29. Rc2 {[%clk 0:01:19]}  Qc5 {[%clk 0:00:31]} 30. Nd3 {[%clk 0:01:18]}  Qc4 {[%clk 0:00:28]} 31. Ne5 {[%clk 0:00:59]}  Qxe2 {[%clk 0:00:27]} 32. Rxe2 {[%clk 0:01:00]}  Bxe5 {[%clk 0:00:25]} 33. fxe5 {[%clk 0:00:59]}  Rd2 {[%clk 0:00:25]} 34. Kf1 {[%clk 0:00:45]}  Rb2 {[%clk 0:00:14]} 35. Re1 {[%clk 0:00:22]}  c2 {[%clk 0:00:14]} 36. Ke2 {[%clk 0:00:05]}  c1=Q+ {[%clk 0:00:13]} 0-1


[Site "https://www.chess.com"]